Cogmind - Beta 13 @@@ ROGUE MODE // 2024.06.18 @ 01:26:18 Player: celerysam Result: Destroyed by G-34 Mercenary with Small Laser Performance ------------- Evolutions (1) 500 Regions Visited (2) 400 Robots Destroyed (8) 40 Value Destroyed (200) 200 Prototype IDs (0) 0 Alien Tech Used (0) 0 Bonus (0) 0 TOTAL SCORE: 1140 Bonus ------- None Cogmind --------- Core Integrity 0/400 Matter 68/300 Energy 100/100 System Corruption 0% Temperature Cool (6) Movement Core (350) Ox6 Location -9/Materials Parts ------- > --- POWER (1) -------- (None) > --- PROPULSION (4) --- (None) > --- UTILITY (2) ------ Large Storage Unit > --- WEAPON (2) ------- (None) > --- INVENTORY (15) --- Light Ion Engine Light Ion Engine Flight Unit Small Storage Unit Medium Storage Unit Compact Battery (200) Melee Analysis Suite ECM Suite System Shield Light Assault Rifle Mining Laser Peak State ------------ > --- POWER ------------ Ion Engine > --- PROPULSION ------- Light Treads Light Treads Light Treads Light Treads > --- UTILITY ---------- Large Storage Unit Sensor Array > --- WEAPON ----------- Assault Rifle Assault Rifle > --- INVENTORY -------- Light Ion Engine Light Ion Engine Light Treads Flight Unit Flight Unit Flight Unit Flight Unit Small Storage Unit Medium Storage Unit Compact Battery Melee Analysis Suite ECM Suite System Shield Light Assault Rifle Mining Laser [Rating: 11] Favorites ----------- Power Ion Engine Engine Ion Engine Propulsion Light Treads Treads Light Treads Wheel Compact Wheel Flight Unit Flight Unit Utility Large Storage Unit Device Sensor Array Storage Large Storage Unit Weapon Assault Rifle Ballistic Gun Assault Rifle Build | -11 -10 -9 ------- Run | Yrd Mat Mat Slots Evolved 2 | . . 2 Power . | . . . Propulsion 2 | . . 2 Utility . | . . . Weapon . | . . . Parts Attached 21 | 6 6 9 Power 2 | 1 1 . Engine 2 | 1 1 . Core . | . . . Reactor . | . . . Propulsion 13 | 2 2 9 Treads 7 | . 2 5 Leg . | . . . Wheel 2 | 2 . . Hover . | . . . Flight 4 | . . 4 Utility 4 | 1 3 . Device 1 | . 1 . Storage 3 | 1 2 . Processor . | . . . Hackware . | . . . Protection . | . . . Artifact . | . . . Weapon 2 | 2 . . Energy Gun . | . . . Energy Cannon . | . . . Ballistic Gun 2 | 2 . . Ballistic Cannon . | . . . Launcher . | . . . Special Weapon . | . . . Impact Weapon . | . . . Slashing Weapon . | . . . Piercing Weapon . | . . . Special Melee Weapon . | . . . Unidentified Prototypes . | . . . Parts Lost 13 | . 1 12 Power 1 | . . 1 Propulsion 9 | . 1 8 Utility 1 | . . 1 Weapon 2 | . . 2 Highest Loss Streak 10 | . 1 10 To Critical Strikes . | . . . Average Slot Usage (%) 89 | . 98 79 Engine 12 | . 14 10 Treads 21 | . 9 36 Wheel 9 | . 17 . Device 9 | . 13 5 Storage 12 | . 14 11 Ballistic Gun 21 | . 28 13 Naked Turns . | . . . Heaviest Build 30 | 14 30 30 Greatest Support 80 | 32 40 80 Greatest Overweight (x) 4 | 1 1 4 Average Overweight (x) . | . . . Largest Inventory Capacity 15 | 8 15 15 Average Capacity 13 | 7 14 15 Most Carried 15 | 6 15 15 Average Carried 11 | 3 10 14 Final Capacity 15 | 8 15 15 Final Carried 15 | 6 15 11 Class Distribution -------------------- 100% | Mutant Dominant Class ---------------- Mutant | -10/Materials Mutant | -9/Materials Resources | -11 -10 -9 ----------- Run | Yrd Mat Mat Matter Collected 279 | 169 67 43 Remotely . | . . . Salvage Created 202 | . 196 6 Parts 18 | . 17 1 Haulers Intercepted . | . . . Recyclers Shooed . | . . . Parts Field Recycled . | . . . Retrieved Matter . | . . . Parts Self-Destructed . | . . . Prevented . | . . . Kills | -11 -10 -9 ------- Run | Yrd Mat Mat Combat Hostiles Destroyed 8 | . 7 1 Melee 1 | . . 1 Guns 7 | . 7 . Classes Destroyed 2 | . 2 . Swarmer 3 | . 3 . Grunt 5 | . 4 1 Best Kill Streak 3 | . 3 1 Combat Bots Only 3 | . 3 1 Max Kills in Single Turn 1 | . 1 1 Gunslinging . | . . . Exploded . | . . . Melee 1 | . . 1 Uniques/NPCs Destroyed . | . . . Combat | -11 -10 -9 -------- Run | Yrd Mat Mat Hostile Shots Fired 222 | . 61 161 Missed 64 | . 19 45 Damage Taken 1893 | . 429 1464 Core 521 | . 118 403 Absorbed by Shields . | . . . Core Remaining (%) 76 | 100 52 . Volleys Fired 34 | . 24 10 Largest 2 | . 2 2 Hottest 40 | . 40 40 Shots Fired 63 | . 48 15 Gun 63 | . 48 15 Cannon . | . . . Launcher . | . . . Special . | . . . Kinetic 63 | . 48 15 Thermal . | . . . Explosive . | . . . Electromagnetic . | . . . Robot Hit Streak 5 | . 5 3 Robot Miss Streak 4 | . 4 2 Penetration Max . | . . . Secondary Targets 2 | . 2 . Max Gunslinging Chain 1 | . 1 . Shots Hit Robots 34 | . 26 8 Core Hits 11 | . 11 . Critical Kills . | . . . Critical Parts Destroyed . | . . . Critical Strikes . | . . . Melee Attacks . | . . . Impact . | . . . Slashing . | . . . Piercing . | . . . Sneak Attacks . | . . . Combat Hostiles . | . . . Follow-up Attacks . | . . . Damage Inflicted 431 | . 313 118 Guns 413 | . 310 103 Cannons . | . . . Explosions . | . . . Melee . | . . . Ramming 18 | . 3 15 Kinetic 413 | . 310 103 Thermal . | . . . Explosive . | . . . Electromagnetic . | . . . Impact . | . . . Slashing . | . . . Piercing . | . . . Highest Corruption . | . . . Average Corruption . | . . . Corruption Purged . | . . . Corruption Blocked . | . . . Overload Shots . | . . . Overflow Damage . | . . . Projectiles . | . . . Explosions . | . . . Melee . | . . . Knockbacks . | . . . Impact . | . . . Kinetic . | . . . Secondary . | . . . Self-Inflicted Damage 5 | . 1 4 Shots . | . . . Rammed 5 | . 1 4 Targets Rammed 6 | . 1 5 Kicked . | . . . Crushed 1 | . . 1 Highest Temperature 8 | . 5 8 Average Temperature 4 | . 3 6 Received Heat Transfer 801 | . 198 603 Siege Activations . | . . . Robots Corrupted . | . . . Combat Hostiles . | . . . Parts Fried . | . . . Impact Corruptions . | . . . Robots Melted . | . . . Combat Hostiles . | . . . Parts Melted . | . . . Heat Transferred . | . . . Parts Sabotaged . | . . . Parts Stolen . | . . . Parts Stripped . | . . . Power Chain Reactions . | . . . Alert | -11 -10 -9 ------- Run | Yrd Mat Mat Peak Influence 226 | . 226 149 Initial 94 | . . 94 Average 88 | . 85 111 Maximum Alert Level 1 | . 1 . Low Security (%) 92 | 100 84 100 Level 1 7 | . 15 . Level 2 . | . . . Level 3 . | . . . Level 4 . | . . . Level 5 . | . . . High Security . | . . . Max Security . | . . . Squads Dispatched 3 | . 2 1 Investigation 1 | . 1 . Extermination . | . . . Reinforcement 2 | . 1 1 Assault . | . . . Garrison . | . . . Intercept . | . . . Searches Triggered . | . . . Construction Impeded . | . . . Haulers Reinforced . | . . . Active Scanning Responses . | . . . Cargo Convoy Interrupts . | . . . Stealth | -11 -10 -9 --------- Run | Yrd Mat Mat Distress Signals 1 | . 1 . Communications Jammed . | . . . Distress Signals . | . . . Times Spotted 23 | . 14 9 Peak Tracking Total 8 | . 4 8 Tactical Retreats 2 | . 1 1 Traps | -11 -10 -9 ------- Run | Yrd Mat Mat Traps Triggered 1 | . 1 . Indirectly . | . . . Trap Hack Attempts . | . . . Triggered . | . . . Disarmed . | . . . Reprogrammed . | . . . Reused . | . . . Traps Extracted . | . . . Installed . | . . . Triggered . | . . . Machines | -11 -10 -9 ---------- Run | Yrd Mat Mat Machines Disabled . | . . . Max in Single Turn . | . . . Machines Repaired . | . . . Machines Dismantled . | . . . Machines Sabotaged . | . . . Overloaded Fab Kills . | . . . Hacking | -11 -10 -9 --------- Run | Yrd Mat Mat Machines Accessed 2 | . 1 1 Terminals 2 | . 1 1 Fabricators . | . . . Repair Stations . | . . . Recycling Units . | . . . Scanalyzers . | . . . Garrison Access . | . . . Total Hacks 3 | . 2 1 Successful . | . . . Failed 3 | . 2 1 Catastrophic . | . . . Database Lockouts . | . . . Manual 2 | . 2 . Terminals 3 | . 2 1 Fabricators . | . . . Repair Stations . | . . . Recycling Units . | . . . Scanalyzers . | . . . Garrison Access . | . . . Terminal Hacks . | . . . Fabricator Hacks . | . . . Repair Station Hacks . | . . . Recycling Unit Hacks . | . . . Scanalyzer . | . . . Garrison Access Hacks . | . . . Unauthorized Hacks . | . . . Terminals . | . . . Fabricators . | . . . Repair Stations . | . . . Recycling Units . | . . . Scanalyzers . | . . . Garrison Access . | . . . Data Cores Recovered . | . . . Used . | . . . Hacking Detections 1 | . 1 . Full Trace Events . | . . . Feedback Events . | . . . Feedback Blocked . | . . . Robot Schematics Acquired . | . . . Robots Built . | . . . Authchips . | . . . Time . | . . . Total Robot Build Rating . | . . . Part Schematics Acquired . | . . . Parts Built . | . . . Authchips . | . . . Time . | . . . Total Part Build Rating . | . . . Parts Repaired . | . . . Time . | . . . Parts Recycled . | . . . Recycled Matter . | . . . Retrieved Matter . | . . . Retrieved Components . | . . . Parts Scanalyzed . | . . . Part Schematics Acquired . | . . . Parts Damaged . | . . . Bothacking | -11 -10 -9 ------------ Run | Yrd Mat Mat Used RIF Installer . | . . . Robots Hacked . | . . . Non-combat . | . . . Combat . | . . . Robot Hacks Applied . | . . . Relay Couplers Released . | . . . Fabnet Peak Effective % . | . . . Robots Rewired . | . . . Allies Hacked . | . . . Hacks Repelled . | . . . Allies | -11 -10 -9 -------- Run | Yrd Mat Mat Total Allies . | . . . Largest Group . | . . . Highest-Rated Group . | . . . Highest-Rated Ally . | . . . Total Orders . | . . . Ally Attacks . | . . . Total Damage . | . . . Kills . | . . . Allies Corrupted . | . . . Allies Melted . | . . . Intel | -11 -10 -9 ------- Run | Yrd Mat Mat Robot Analysis Total . | . . . Derelict Logs Recovered . | . . . Drone Launches . | . . . Drone Recoveries . | . . . Exploration | -11 -10 -9 ------------- Run | Yrd Mat Mat Turns Passed 743 | 70 369 304 Spaces Moved 406 | 54 202 150 Core 4 | 4 . . Treads 206 | . 62 144 Legs . | . . . Wheels 190 | 50 140 . Hover . | . . . Flight 6 | . . 6 Fastest Speed 50 | 50 100 114 Average Speed 133 | 97 118 167 Slowest Speed 360 | 100 160 360 Overloaded Moves . | . . . Propulsion Burnouts . | . . . Robots Hopped . | . . . Cave-ins Triggered . | . . . Exploration Rate (%) 19 | 4 34 21 Regions Visited 2 Branch Regions . Pre-discovered Areas . | . . . Known Exits Taken . | . . . Unknown Exits Taken 2 | 1 1 . Scrap Searched . | . . . Spaces Dug . | . . . Terrain Destroyed . | . . . Melee . | . . . Projectile . | . . . AOE . | . . . Terrain Rammed . | . . . Walls Destroyed . | . . . Machines Disabled . | . . . Actions | -11 -10 -9 --------- Run | Yrd Mat Mat Total 538 | 71 282 185 Wait 40 | . 35 5 Move 404 | 53 201 150 Hop . | . . . Pick Up 29 | 12 13 4 Fast Attach . | . . . Attach 14 | 6 2 6 Detach . | . . . Swap 7 | . 4 3 Drop 4 | . 2 2 Fire 34 | . 24 10 Melee . | . . . Ram 3 | . 1 2 Kick . | . . . Crush 3 | . . 3 Escape Stasis . | . . . Rewire . | . . . Trap . | . . . Miscellaneous . | . . . Route ------- -11/Scrapyard -10/Materials -9/Materials History --------- Turn | Location | Event 22 | -11/Scrapyard | Discovered new exit (range 15) 71 | -11/Scrapyard | Entered Materials 332 | -10/Materials | Build established: Mutant 373 | -10/Materials | Discovered new exit (range 3) 440 | -10/Materials | Entered another Materials area 440 | -9/Materials | Evolved 2 slots: Propulsion x2 717 | -9/Materials | Core integrity fell below 50% 742 | -9/Materials | Core integrity fell below 20% 744 | -9/Materials | Destroyed by G-34 Mercenary with Small Laser Last Messages --------------- 00602_ Assault Rifle destroyed. 00604_ K-01 Serf collects debris. 00614_ Slammed into G-34 Mercenary. 00616_ K-01 Serf cleans the Material Compactor. 00617_ Slammed into G-34 Mercenary. 00619_ Crushed G-34 Mercenary. 00619_ G-34 Mercenary destroyed. 00620_ Acquired 6 matter. 00625_ K-01 Serf cleans the Material Compactor. 00658_ Critical hit (Burn: +37). 00659_ Assault Rifle destroyed. 00675_ Lgt. Treads destroyed. 00700_ K-01 Serf collects debris. 00722_ Ion Engine destroyed. 00722_ Lgt. Treads destroyed. 00728_ G-34 Mercenary destroyed. 00735_ Slammed into G-34 Mercenary. 00737_ Flight Unit destroyed. 00741_ Acquired 37 matter. 00742_ Flight Unit destroyed. Map ----- +----------------------------------------------------+ | ?????????????????????????????????????????????????? | | ?????????????????????????????????????????????????? | | ?????????????????????????????????????????????????? | | ?????????????????????????????????????????????????? | | ?????????????????????????????????????????????????? | | ?????????????????????????????????????????????????? | | ?????????????????????????????????????????????????? | | ?????????????????????????????????????????????????? | | ?????????????????????????????????????????????????? | | ?????????????????????????????????????????????????? | | ?????????????????????????????????????????????????? | | ?????????????????? ????????????????????????????? | | ????????????????? ????????????????????????????? | | ????????????????? ????????????????????????????? | | ????????????????? #???????????????????????????? | | ????????????????? ???????????????????????????? | | ???????????????? ???????????????????????????? | | ???????????? ??? ???????????????????????????? | | ???????????? ???????????????????????????? | | ???????????""" """ ???????????????????????????? | | ???????????""" """ ##########??????????????????? | | ??????? """ """ # #??????????????????? | | ?????? """ """ # #??????????????????? | | ??????"" # g #??????????????????? | | ??????R # g ! #??????????????????? | | ??????"" ; Y @[ #??????????????????? | | ????? # Y= #????????#######???? | | ????? # !% #????????# #???? | | ???????############### = ########## ### | | ?????????????????????# Y | | ?????????????????????################### ###?? | | ???????????????????????????????????????# #???? | | ???????????????????????????????????????## ##???? | | ????????????????????????????????????????# #????? | | ????????????????????????????????????????# #????? | | ????????????????????????????????????????# #????? | | ??????????????????????????????????????### ###??? | | ?????????????????????????????########## #??? | | ????????????????????????????? #??? | | ???????????????????????????? #??? | | ????????????????????????????? #??? | | ???????????????????????????? #??? | | ????????????????????????????? #??? | | ????????????????????????????? ######### #??? | | ?????????????????????????????????????#####/####??? | | ?????????????????????????????????????# #??? | | ?????????????????????????????????????#""" #??? | | ?????????????????????????????????????#""" #??? | | ?????????????????????????????????????#""" #??? | | ?????????????????????????????????????# #??? | +----------------------------------------------------+ Best States ------------- Heat Dissipation 28 Energy Generation 10 Energy Capacity 250 Matter Stores 209 Matter Capacity 300 Sight Range 16 Robot Scan Range 14 Terrain Scan Density 10 Evasion (%) 40 Recoil Reduction 4 Item Schematics ----------------- None Robot Schematics ------------------ None Fabricated ------------ Nothing Alien Tech Used ----------------- None Achievements -------------- None Challenges ------------ None Game ------ Seed CompactNodePod Manual? 0 Play Time 00:10:31 Cumulative 51.4 hours Start 2024.06.18 @ 01:18:39 End 2024.06.18 @ 01:26:18 Sessions 1 Manual Loads 0 Difficulty Rogue Special Mode None Game No. 78 Rogue 78 Adventurer 0 Explorer 0 Win Type - Total 0 Types 0/0/0/0/0/0/0/0/0 Lore% 25 Gallery% 41 Achievement% 28 Wizard Run 0 Options --------- Layout 0 ASCII 0 Keyboard 0 Movement Mouse Keybinds 0 Fullscreen 1 Font 24/Smallcaps Map View 76x50 Zoom Use 0% Tactical HUD 1 Map Filters NONE Filters NONE Steam 1 RUN: 64e8753b-9c9b-4adb-b9ca-d380f7257213